bitfinex/quotes_BTCUSD_20250607
["timestamp","ask_amount","ask_price","bid_price","bid_amount"]
[1749299235645,0.01779834,105410.0,105400.0,2.11358499]
[1749299236312,0.01779834,105410.0,105400.0,1.32087555]
[1749299236517,0.01779834,105410.0,105400.0,1.71723027]
[1749299237043,0.01779834,105410.0,105400.0,2.11358499]
[1749299237961,0.01779834,105410.0,105400.0,2.14209099]
[1749299244770,0.01779834,105410.0,105400.0,2.12579099]
[1749299245190,0.01779834,105410.0,105400.0,2.11069099]
[1749299247318,0.01779834,105410.0,105400.0,2.38409099]
[1749299248239,0.01779834,105410.0,105400.0,1.98773627]
[1749299250956,0.01779834,105410.0,105400.0,1.59138155]
[1749299251165,0.01779834,105410.0,105400.0,1.98773627]
[1749299251510,0.04929834,105410.0,105400.0,1.95923027]
[1749299253887,0.04929834,105410.0,105400.0,1.68583027]
[1749299255788,0.04929834,105410.0,105400.0,0.91523555]
[1749299256064,0.05878429,105410.0,105400.0,1.28947555]
[1749299256257,0.04929834,105410.0,105400.0,1.28947555]
[1749299256685,0.04929834,105410.0,105400.0,1.68583027]
[1749299257775,0.04929834,105410.0,105400.0,1.28947555]
[1749299260377,0.04929834,105410.0,105400.0,1.68583027]
[1749299264325,0.04929834,105410.0,105400.0,0.91523555]
[1749299264535,0.04929834,105410.0,105400.0,1.68583027]
[1749299267670,0.04929834,105410.0,105400.0,0.91523555]
[1749299267869,0.04929834,105410.0,105400.0,1.28947555]
[1749299268088,0.04929834,105410.0,105400.0,1.2749347]
[1749299268693,0.04929834,105410.0,105400.0,0.9006947]
[1749299268866,0.04929834,105410.0,105400.0,1.2749347]
[1749299270740,0.45513919,105410.0,105400.0,1.2749347]
[1749299271158,0.46462523,105410.0,105400.0,1.2756547]
[1749299271363,0.45513901,105410.0,105400.0,1.2756547]
[1749299271563,0.44565306,105410.0,105400.0,1.2756547]
[1749299271793,0.04929834,105410.0,105400.0,1.2756547]
[1749299278935,0.03379834,105410.0,105400.0,1.67200942]
[1749299279152,0.01779834,105410.0,105400.0,1.70220942]
[1749299279356,0.01779834,105410.0,105400.0,1.68700942]
[1749299279580,0.01779834,105410.0,105400.0,1.67200942]
[1749299282314,0.01779834,105410.0,105400.0,1.71925027]
[1749299287438,0.01779834,105410.0,105400.0,1.31159027]
[1749299287640,0.01779834,105410.0,105400.0,1.68703027]
[1749299289707,0.01729834,105410.0,105400.0,1.68703027]
[1749299293597,0.03729834,105410.0,105400.0,1.68703027]
[1749299298237,0.03729834,105410.0,105400.0,2.08338499]
[1749299298648,0.03729834,105410.0,105400.0,1.68703027]
[1749299304156,0.03729834,105410.0,105400.0,1.39927027]
[1749299304353,0.03729834,105410.0,105400.0,1.68671027]
[1749299309319,0.03729834,105410.0,105400.0,1.29035555]
[1749299309534,0.03729834,105410.0,105400.0,1.68671027]
[1749299326090,0.03729834,105410.0,105400.0,1.29035555]
[1749299326310,0.03729834,105410.0,105400.0,1.68671027]
[1749299327322,0.05289834,105410.0,105400.0,1.68671027]
[1749299350940,0.03729834,105410.0,105400.0,1.68671027]
[1749299354772,0.03729834,105410.0,105400.0,2.08306499]
[1749299358786,0.01729834,105410.0,105400.0,2.08306499]
[1749299366690,0.00729834,105410.0,105400.0,2.08306499]
[1749299368731,0.04859834,105420.0,105410.0,0.21819451]
[1749299368936,0.04859834,105420.0,105410.0,0.71094871]
[1749299369983,0.05059834,105420.0,105410.0,0.71094871]
[1749299373345,0.05059834,105420.0,105410.0,0.79818871]
[1749299380027,0.022,105420.0,105410.0,0.81272956]
[1749299382117,0.02,105420.0,105410.0,0.81272956]
[1749299384940,0.02,105420.0,105410.0,1.05876956]
[1749299391567,0.036,105420.0,105410.0,1.05876956]
[1749299392513,0.02,105420.0,105410.0,1.05876956]
[1749299404433,0.04,105420.0,105410.0,1.05876956]
[1749299410085,0.0556,105420.0,105410.0,1.05876956]
[1749299411931,0.0719,105420.0,105410.0,1.34580956]
[1749299412141,0.0519,105420.0,105410.0,1.34580956]
[1749299421389,0.06138505,105420.0,105410.0,1.34572956]
[1749299421619,0.0519,105420.0,105410.0,0.94937484]
[1749299421836,0.06138505,105420.0,105410.0,1.34572956]
[1749299422606,0.0519,105420.0,105410.0,1.34572956]
[1749299423332,0.0519,105420.0,105410.0,1.37423656]
[1749299432273,0.0356,105420.0,105410.0,1.37423656]
[1749299435129,0.02,105420.0,105410.0,1.37423656]
[1749299442902,0.02,105420.0,105410.0,0.97788184]
[1749299443108,0.02,105420.0,105410.0,1.37423656]
[1749299444317,0.02047895,105420.0,105410.0,1.37423656]
[1749299469049,0.00047895,105420.0,105410.0,1.37423656]
[1749299475154,0.00047895,105420.0,105410.0,1.40573656]
[1749299480245,0.00047895,105420.0,105410.0,1.38933656]
[1749299483942,0.00047895,105420.0,105410.0,1.36082956]
[1749299488631,0.00047895,105420.0,105410.0,1.34572956]
[1749299491632,0.00047895,105420.0,105410.0,1.34636956]
[1749299492287,0.01667895,105420.0,105410.0,1.34636956]
[1749299495639,0.00047895,105420.0,105410.0,1.34636956]
[1749299497822,0.01567895,105420.0,105410.0,1.34636956]
[1749299500752,0.00047895,105420.0,105410.0,1.34636956]
[1749299501115,0.01697895,105420.0,105410.0,1.34636956]
[1749299502059,0.01697895,105420.0,105410.0,0.95001484]
[1749299502272,0.01697895,105420.0,105410.0,1.34636956]
[1749299505266,0.00047895,105420.0,105410.0,1.34636956]
[1749299513540,0.02047895,105420.0,105410.0,1.34636956]
[1749299519204,0.02047895,105420.0,105410.0,2.11452428]
[1749299519626,0.02047895,105420.0,105410.0,2.14302728]
[1749299520487,0.02047895,105420.0,105410.0,2.14402728]
[1749299524763,0.02047895,105420.0,105410.0,2.23867515]
[1749299525170,0.02047895,105420.0,105410.0,2.14402728]
[1749299527549,0.02047895,105420.0,105410.0,2.540382]
[1749299528008,0.02047895,105420.0,105410.0,2.14402728]
[1749299529039,0.02047895,105420.0,105410.0,2.540382]
[1749299529366,0.02047895,105420.0,105410.0,2.63502987]
[1749299529571,0.02047895,105420.0,105410.0,2.93867515]
[1749299529982,0.02047895,105420.0,105410.0,2.93767515]
[1749299530188,0.1,105430.0,105420.0,0.58937382]
[1749299530394,0.1,105430.0,105420.0,1.98402618]
[1749299530590,0.1,105430.0,105420.0,1.16940202]
[1749299530795,0.14425353,105430.0,105420.0,0.6830713]
[1749299531016,0.1309,105430.0,105420.0,1.82172274]
[1749299531229,0.1309,105430.0,105420.0,1.82184274]
[1749299531456,0.1158,105430.0,105420.0,1.82184274]
[1749299531673,0.1158,105430.0,105420.0,1.83838359]
[1749299532543,0.1158,105430.0,105420.0,1.83938359]
[1749299538444,0.1158,105430.0,105420.0,1.04667415]
[1749299538632,0.1158,105430.0,105420.0,1.83938359]
[1749299544736,0.1158,105430.0,105420.0,2.11270359]
[1749299546626,0.1158,105430.0,105420.0,0.94543415]
[1749299546880,0.1313,105430.0,105420.0,0.9653733]
[1749299547325,0.1313,105430.0,105420.0,1.36172802]
[1749299547756,0.1313,105430.0,105420.0,1.36072802]
[1749299548084,0.1313,105430.0,105420.0,1.35872802]
[1749299548489,0.1313,105430.0,105420.0,0.98424802]
[1749299548717,0.14078415,105430.0,105420.0,1.35868802]
[1749299550907,0.1313,105430.0,105420.0,1.35868802]
[1749299551111,0.14078415,105430.0,105420.0,1.35868802]
[1749299551617,0.15026839,105430.0,105420.0,0.98424802]
[1749299551818,0.14078415,105430.0,105420.0,1.35876802]
[1749299551956,0.1313,105430.0,105420.0,1.35876802]
[1749299552937,0.1313,105430.0,105420.0,0.98424802]
[1749299553137,0.14078424,105430.0,105420.0,1.35872802]
[1749299553657,0.1313,105430.0,105420.0,1.35872802]
[1749299554085,0.14078424,105430.0,105420.0,1.35872802]
[1749299554519,0.14078415,105430.0,105420.0,0.5878933]
[1749299554736,0.16923768,105430.0,105420.0,0.5878933]
[1749299555000,0.1313,105430.0,105420.0,0.9623333]
[1749299555414,0.1313,105430.0,105420.0,1.35868802]
[1749299555624,0.14078415,105430.0,105420.0,1.35868802]
[1749299557241,0.1313,105430.0,105420.0,1.35868802]
[1749299558430,0.14078415,105430.0,105420.0,1.35868802]
[1749299563329,0.14078424,105430.0,105420.0,1.35868802]
[1749299563665,0.1313,105430.0,105420.0,1.35868802]
[1749299564178,0.1313,105430.0,105420.0,0.98424802]
[1749299564308,0.1313,105430.0,105420.0,1.35868802]
[1749299566756,0.1253,105430.0,105420.0,1.35868802]
[1749299567666,0.1253,105430.0,105420.0,0.98424802]
[1749299567870,0.1253,105430.0,105420.0,1.35872802]
[1749299570766,0.1253,105430.0,105420.0,1.08540802]
[1749299571213,0.1253,105430.0,105420.0,0.6890533]
[1749299575453,0.1253,105430.0,105420.0,0.9350933]
[1749299576786,0.1253,105430.0,105420.0,1.33144802]
[1749299578266,0.14308803,105430.0,105420.0,1.33144802]
[1749299578643,0.1430883,105430.0,105420.0,1.33144802]
[1749299578926,0.1253,105430.0,105420.0,1.33144802]
[1749299579134,0.1430883,105430.0,105420.0,1.33144802]
[1749299580807,0.14308925,105430.0,105420.0,1.33144802]
[1749299581856,0.1253,105430.0,105420.0,1.33144802]
[1749299582068,0.1430895,105430.0,105420.0,1.33144802]
[1749299582272,0.1253,105430.0,105420.0,1.33144802]
[1749299582484,0.1430895,105430.0,105420.0,0.9350933]
[1749299582710,0.1430895,105430.0,105420.0,1.33144802]
[1749299582935,0.094,105430.0,105420.0,1.74234359]
[1749299583152,0.094,105430.0,105420.0,1.77534359]
[1749299583373,0.094,105430.0,105420.0,2.11534359]
[1749299583578,0.094,105430.0,105420.0,1.71898887]
[1749299584241,0.094,105430.0,105420.0,1.70248887]
[1749299592498,0.094,105430.0,105420.0,1.68598887]
[1749299595697,0.094,105430.0,105420.0,1.70148887]
[1749299597498,0.094,105430.0,105420.0,1.68598887]
[1749299603161,0.74799226,105430.0,105420.0,0.34243948]
[1749299603398,0.82355359,105430.0,105420.0,0.42971948]
[1749299603630,0.82355359,105430.0,105420.0,0.62048]
[1749299603855,0.82355545,105430.0,105420.0,0.81968309]
[1749299604084,0.82355589,105430.0,105420.0,0.82916877]
[1749299604337,0.82355589,105430.0,105420.0,0.83865427]
[1749299604567,0.64334144,105430.0,105420.0,0.84813968]
[1749299604789,0.83304076,105430.0,105420.0,0.84813968]
[1749299605232,0.75628374,105430.0,105420.0,0.84813968]
[1749299605455,0.75628357,105430.0,105420.0,0.84813968]
[1749299605712,0.7562836,105430.0,105420.0,0.83865427]
[1749299606160,0.75628436,105430.0,105420.0,0.83865427]
[1749299606984,0.75628436,105430.0,105420.0,0.84813968]
[1749299607199,0.75627536,105430.0,105420.0,0.84813968]
[1749299607411,0.75627509,105430.0,105420.0,0.84813968]
[1749299607859,0.75627509,105430.0,105420.0,0.857625]
[1749299608320,0.75626918,105430.0,105420.0,0.857625]
[1749299608906,0.73850838,105430.0,105420.0,0.83865427]
[1749299609141,0.73729899,105430.0,105420.0,0.82916868]
[1749299609381,0.73729898,105430.0,105420.0,0.83865409]
[1749299609866,0.73729898,105430.0,105420.0,0.83865418]
[1749299610319,0.73729898,105430.0,105420.0,0.84813959]
[1749299610506,0.73729429,105430.0,105420.0,0.84813959]
[1749299611478,0.74677889,105430.0,105420.0,0.84817959]
[1749299611737,0.74677889,105430.0,105420.0,0.82920868]
[1749299611986,0.74677449,105430.0,105420.0,0.82920868]
[1749299612246,0.74677458,105430.0,105420.0,0.82920868]
[1749299612496,0.74677463,105430.0,105420.0,0.82920868]
[1749299612711,0.74677463,105430.0,105420.0,0.83869418]
[1749299613153,0.74677093,105430.0,105420.0,0.83869418]
[1749299613714,0.74677093,105430.0,105420.0,0.84817959]
[1749299613944,0.72902351,105430.0,105420.0,0.45472877]
[1749299614166,0.74677082,105430.0,105420.0,0.83869427]
[1749299614385,0.74677082,105430.0,105420.0,0.84817968]
[1749299614827,0.74676908,105430.0,105420.0,0.84817968]
[1749299615043,0.74676908,105430.0,105420.0,0.83869427]
[1749299617292,0.72902351,105430.0,105420.0,0.83869427]
[1749299617509,0.74676797,105430.0,105420.0,0.83869427]
[1749299617734,0.72902351,105430.0,105420.0,0.83869427]
[1749299617954,0.74676754,105430.0,105420.0,0.83869427]
[1749299619829,0.74676789,105430.0,105420.0,0.83869427]
[1749299620032,0.7467679,105430.0,105420.0,0.83869427]
[1749299620444,0.7467679,105430.0,105420.0,0.84817968]
[1749299620647,0.7467679,105430.0,105420.0,0.83869427]
[1749299620859,0.7467679,105430.0,105420.0,0.84817968]
[1749299621262,0.72902351,105430.0,105420.0,0.857665]
[1749299621660,0.7467687,105430.0,105420.0,0.857665]
[1749299622362,0.74676885,105430.0,105420.0,0.84817968]
[1749299622577,0.72902351,105430.0,105420.0,0.84817968]
[1749299622726,0.74676883,105430.0,105420.0,0.84817968]
[1749299622927,0.74676968,105430.0,105420.0,0.84817968]
[1749299623241,0.74676975,105430.0,105420.0,0.84817968]
[1749299624842,0.74677298,105430.0,105420.0,0.84817968]
[1749299624998,0.54758852,105430.0,105420.0,0.85766491]
[1749299625207,0.094,105430.0,105420.0,0.95406439]
[1749299625423,0.10348415,105430.0,105420.0,0.95406439]
[1749299625621,0.11296848,105430.0,105420.0,0.95406439]
[1749299625857,0.12245308,105430.0,105420.0,0.95406439]
[1749299626041,0.13193786,105430.0,105420.0,0.95406439]
[1749299626659,0.14703786,105430.0,105420.0,0.95406439]
[1749299627263,0.74879262,105430.0,105420.0,0.92560825]
[1749299627471,0.54960897,105430.0,105420.0,0.94457898]
[1749299628012,0.56736871,105430.0,105420.0,0.94457898]
[1749299629915,0.56737692,105430.0,105420.0,0.94457898]
[1749299630804,0.54960897,105430.0,105420.0,0.94457898]
[1749299631046,0.56737799,105430.0,105420.0,0.94457898]
[1749299632302,0.56738924,105430.0,105420.0,0.94457898]
[1749299632510,0.56738924,105430.0,105420.0,0.69853898]
[1749299632925,0.5673895,105430.0,105420.0,0.69853898]
[1749299634082,0.57687446,105430.0,105420.0,0.69853898]
[1749299635340,0.57687446,105430.0,105420.0,0.69853916]
[1749299635564,0.57688207,105430.0,105420.0,0.69853916]
[1749299635793,0.57688207,105430.0,105420.0,0.67008266]
[1749299635794,0.75709704,105430.0,105420.0,0.67008266]
[1749299636010,0.74761216,105430.0,105420.0,0.67008266]
[1749299636465,0.74761216,105430.0,105420.0,0.67956843]
[1749299636891,0.74761241,105430.0,105420.0,0.67956843]
[1749299637144,0.20868868,105420.0,105410.0,0.43577311]
[1749299637402,0.64482917,105420.0,105410.0,0.92562584]
[1749299637604,0.66261806,105420.0,105410.0,0.56063233]
[1749299637852,0.26626334,105420.0,105410.0,0.94459873]
[1749299638024,0.06706016,105420.0,105410.0,0.9540845]
[1749299638257,0.0765453,105420.0,105410.0,0.9540845]
[1749299638697,0.0615451,105420.0,105410.0,0.9540845]
[1749299639111,0.04375641,105420.0,105410.0,0.9540845]
[1749299639291,0.0615451,105420.0,105410.0,0.9540845]
[1749299639528,0.06154517,105420.0,105410.0,0.9540845]
[1749299640247,0.05205949,105420.0,105410.0,0.9540845]
[1749299640432,0.26074844,105420.0,105410.0,0.91613917]
[1749299640774,0.6393144,105420.0,105410.0,0.64791206]
[1749299640981,0.65313272,105420.0,105410.0,0.91613917]
[1749299641453,0.64364695,105420.0,105410.0,0.91613917]
[1749299641662,0.64364695,105420.0,105410.0,0.92562566]
[1749299641871,1.51102676,105420.0,105410.0,0.62052]
[1749299642099,1.52881521,105420.0,105410.0,0.62052]
[1749299642529,1.53548746,105420.0,105410.0,0.62052]
[1749299642673,1.54514957,105420.0,105410.0,0.62052]
[1749299642878,1.14879485,105420.0,105410.0,0.62052]
[1749299643050,1.148795,105420.0,105410.0,0.62052]
[1749299643460,1.52736012,105420.0,105410.0,0.33332]
[1749299643667,1.04016683,105420.0,105410.0,0.33332]
[1749299643867,1.02905564,105420.0,105410.0,0.62052]
[1749299644064,1.02238893,105420.0,105410.0,0.62052]
[1749299644266,1.04683386,105420.0,105410.0,0.62052]
[1749299644473,1.04683308,105420.0,105410.0,0.62052]
[1749299645350,1.04016633,105420.0,105410.0,0.62052]
[1749299645553,1.04683285,105420.0,105410.0,0.62052]
[1749299645755,1.046832,105420.0,105410.0,0.62052]
[1749299645980,1.04683169,105420.0,105410.0,0.62052]
[1749299647160,1.04681862,105420.0,105410.0,0.62052]
[1749299647570,0.25410796,105420.0,105410.0,0.62052]
[1749299647796,1.04015476,105420.0,105410.0,0.62052]
[1749299647978,1.0468174,105420.0,105410.0,0.62052]
[1749299648978,1.04014505,105420.0,105410.0,0.62052]
[1749299649394,1.02904747,105420.0,105410.0,0.62052]
[1749299649600,1.04680174,105420.0,105410.0,0.62052]
[1749299649801,1.04680174,105420.0,105410.0,0.37448]
[1749299650591,1.04680176,105420.0,105410.0,0.37448]
[1749299651179,1.04680078,105420.0,105410.0,0.37448]
[1749299651443,1.04679816,105420.0,105410.0,0.37448]
[1749299651997,1.0401411,105420.0,105410.0,0.37448]
[1749299652217,1.04679774,105420.0,105410.0,0.37448]
[1749299652447,1.04679662,105420.0,105410.0,0.37448]
[1749299652686,1.046796,105420.0,105410.0,0.37448]
[1749299653635,1.04679325,105420.0,105410.0,0.37448]
[1749299654208,1.04013723,105420.0,105410.0,0.37448]
[1749299654404,1.0467925,105420.0,105410.0,0.37448]
[1749299654859,1.04013632,105420.0,105410.0,0.37448]
[1749299655109,1.04679159,105420.0,105410.0,0.37448]
[1749299656518,1.02904399,105420.0,105410.0,0.37448]
[1749299656792,1.04679083,105420.0,105410.0,0.37448]
[1749299657792,1.04679107,105420.0,105410.0,0.37448]
[1749299657982,1.04679169,105420.0,105410.0,0.37448]
[1749299659511,1.04679338,105420.0,105410.0,0.37448]
[1749299659913,1.02904469,105420.0,105410.0,0.37448]
[1749299660096,1.04679338,105420.0,105410.0,0.37448]
[1749299660312,1.04679571,105420.0,105410.0,0.37448]
[1749299661207,1.04679596,105420.0,105410.0,0.37448]
[1749299661410,1.02904557,105420.0,105410.0,0.37448]
[1749299661622,1.04679689,105420.0,105410.0,0.37448]
[1749299663141,1.02904693,105420.0,105410.0,0.37448]
[1749299663351,1.04680161,105420.0,105410.0,0.37448]
[1749299664434,1.0468065,105420.0,105410.0,0.37448]
[1749299664638,1.02904693,105420.0,105410.0,0.37448]
[1749299665054,1.02904693,105420.0,105410.0,0.08728]
[1749299665055,1.02238893,105420.0,105410.0,0.08728]
[1749299665263,1.04680834,105420.0,105410.0,0.37452]
[1749299665470,1.409548,105420.0,105410.0,0.37452]
[1749299665720,1.40954814,105420.0,105410.0,0.37452]
[1749299666193,1.40954835,105420.0,105410.0,0.37452]
[1749299666643,1.40955418,105420.0,105410.0,0.37452]
[1749299666863,1.39179087,105420.0,105410.0,0.37452]
[1749299667103,1.40955644,105420.0,105410.0,0.37452]
[1749299667510,6.45289435,105420.0,105410.0,0.08728]
[1749299667513,6.45955681,105420.0,105410.0,0.37452]
[1749299668112,6.44179097,105420.0,105410.0,0.37452]
[1749299668282,6.45956913,105420.0,105410.0,0.37452]
[1749299668480,6.459578,105420.0,105410.0,0.37452]
[1749299669056,6.45291005,105420.0,105410.0,0.37452]
[1749299669274,6.45957803,105420.0,105410.0,0.37452]
[1749299669494,6.48800285,105420.0,105410.0,0.37452]
[1749299669689,6.48799841,105420.0,105410.0,0.37452]
[1749299670095,6.48799678,105420.0,105410.0,0.37452]
[1749299670299,6.48799677,105420.0,105410.0,0.37452]
[1749299670504,6.48799681,105420.0,105410.0,0.37452]
[1749299670752,6.48133049,105420.0,105410.0,0.37452]
[1749299670957,6.48799685,105420.0,105410.0,0.37452]
[1749299671108,0.23072189,105410.0,105400.0,3.440861]
[1749299671307,0.64485352,105410.0,105400.0,3.728581]
[1749299671532,0.67425971,105410.0,105400.0,3.728581]
[1749299672083,0.66759919,105410.0,105400.0,3.728581]
[1749299672272,0.6742677,105410.0,105400.0,3.728581]
[1749299672833,0.67426772,105410.0,105400.0,3.729581]
[1749299673267,0.67426691,105410.0,105400.0,3.729581]
[1749299673455,0.67426691,105410.0,105400.0,3.728581]
[1749299674527,0.66759918,105410.0,105400.0,3.728581]
[1749299674739,0.66759918,105410.0,105400.0,3.440861]
[1749299674945,0.66759536,105410.0,105400.0,3.728541]
[1749299675167,0.67426244,105410.0,105400.0,3.728541]
[1749299675370,1.41061718,105410.0,105400.0,3.641141]
[1749299675979,1.41061805,105410.0,105400.0,3.641141]
[1749299676394,0.61790861,105410.0,105400.0,3.641141]
[1749299676599,1.41061805,105410.0,105400.0,3.641141]
[1749299676972,1.41061243,105410.0,105400.0,3.641141]
[1749299677186,1.39283697,105410.0,105400.0,3.641141]
[1749299677410,1.41061279,105410.0,105400.0,3.641141]
[1749299677608,1.41061289,105410.0,105400.0,3.641141]
[1749299678619,1.3928371,105410.0,105400.0,3.641141]
[1749299678799,1.40394617,105410.0,105400.0,3.641141]
[1749299678996,1.40394616,105410.0,105400.0,3.641141]
[1749299679203,1.40394626,105410.0,105400.0,3.641141]
[1749299679408,1.41061191,105410.0,105400.0,3.641141]
[1749299680182,1.39283573,105410.0,105400.0,3.641141]
[1749299680388,1.41060787,105410.0,105400.0,3.641141]
[1749299680566,1.40394328,105410.0,105400.0,3.641141]
[1749299680829,1.41060783,105410.0,105400.0,3.641141]
[1749299682451,1.41060502,105410.0,105400.0,3.641141]
[1749299682654,1.4039413,105410.0,105400.0,3.641141]
[1749299682868,1.41060509,105410.0,105400.0,3.641141]
[1749299683084,1.01425037,105410.0,105400.0,3.641141]
[1749299683308,1.00758658,105410.0,105400.0,3.641141]
[1749299683520,1.01425001,105410.0,105400.0,3.641141]
[1749299684791,1.01424932,105410.0,105400.0,3.641141]
[1749299685316,1.01424942,105410.0,105400.0,3.641141]
[1749299685429,0.99647999,105410.0,105400.0,3.641141]
[1749299685629,1.01424942,105410.0,105400.0,3.641141]
[1749299685829,1.01425046,105410.0,105400.0,3.641141]
[1749299686034,0.99648038,105410.0,105400.0,3.641141]
[1749299686463,1.01425085,105410.0,105400.0,3.641141]
[1749299688276,1.01425106,105410.0,105400.0,3.641141]
[1749299688881,1.00758929,105410.0,105400.0,3.641141]
[1749299689117,0.99648127,105410.0,105400.0,3.641141]
[1749299689306,1.00758929,105410.0,105400.0,3.641141]
[1749299689513,1.00758926,105410.0,105400.0,3.641141]
[1749299689772,1.01425405,105410.0,105400.0,3.641141]
[1749299690419,1.01425403,105410.0,105400.0,3.641141]
[1749299690862,0.99648125,105410.0,105400.0,3.641141]
[1749299691074,0.99648258,105410.0,105400.0,3.641141]
[1749299691466,1.01425891,105410.0,105400.0,3.641141]
[1749299692371,0.99648258,105410.0,105400.0,3.641141]
[1749299692540,1.01426348,105410.0,105400.0,3.641141]
[1749299693515,1.01426406,105410.0,105400.0,3.641141]
[1749299693724,1.01426427,105410.0,105400.0,3.641141]
[1749299694262,1.01426632,105410.0,105400.0,3.641141]
[1749299694462,1.01427178,105410.0,105400.0,3.641141]
[1749299694668,0.99648609,105410.0,105400.0,3.641141]
[1749299694875,1.01427178,105410.0,105400.0,3.641141]
[1749299695017,0.98277178,105410.0,105400.0,3.641141]
[1749299695429,0.99877178,105410.0,105400.0,3.641141]
[1749299695639,0.99877241,105410.0,105400.0,3.641141]
[1749299696866,0.99877532,105410.0,105400.0,3.641141]
[1749299697667,0.99878307,105410.0,105400.0,3.641141]
[1749299698292,0.98098917,105410.0,105400.0,3.641141]
[1749299698503,0.99878341,105410.0,105400.0,3.641141]
[1749299699063,0.99878354,105410.0,105400.0,3.641141]
[1749299699505,0.9987844,105410.0,105400.0,3.641141]
[1749299700850,0.99211188,105410.0,105400.0,3.641141]
[1749299701066,0.99878516,105410.0,105400.0,3.641141]
[1749299702349,0.9921133,105410.0,105400.0,3.641141]
[1749299702555,0.99878711,105410.0,105400.0,3.641141]
[1749299702767,0.58643239,105410.0,105400.0,3.657141]
[1749299702984,0.25592031,105410.0,105400.0,3.86189432]
[1749299703197,0.22369397,105410.0,105400.0,3.672141]
[1749299703410,0.61337488,105410.0,105400.0,3.672141]
[1749299703660,0.62004869,105410.0,105400.0,3.672141]
[1749299703872,0.6200462,105410.0,105400.0,3.672141]
[1749299704084,0.62003811,105410.0,105400.0,3.672141]
[1749299704509,0.62003862,105410.0,105400.0,3.672141]
[1749299704728,0.62003862,105410.0,105400.0,3.68162866]
[1749299705167,0.62003862,105410.0,105400.0,3.672141]
[1749299705575,0.62003898,105410.0,105400.0,3.672141]
[1749299705788,0.62003372,105410.0,105400.0,3.672141]
[1749299706845,0.62003372,105410.0,105400.0,3.89035622]
[1749299706846,0.44927139,105410.0,105400.0,3.89035622]
[1749299707051,0.6390067,105410.0,105400.0,3.8903564]
[1749299707530,0.63900535,105410.0,105400.0,3.8903564]
[1749299707730,0.63233523,105410.0,105400.0,3.8903564]
[1749299708141,0.63233523,105410.0,105400.0,3.89984352]
[1749299708353,0.632326,105410.0,105400.0,3.89984352]
[1749299709054,0.63232588,105410.0,105400.0,3.89984352]
[1749299709261,0.41532761,105410.0,105400.0,3.90933055]
[1749299709465,0.43310333,105410.0,105400.0,3.90933055]
[1749299709887,0.42481428,105410.0,105400.0,3.90933055]
[1749299710100,0.64181207,105410.0,105400.0,3.89984352]
[1749299710225,0.64181207,105410.0,105400.0,3.8903564]
[1749299710422,0.63232576,105410.0,105400.0,3.8903564]
[1749299710924,0.63232598,105410.0,105400.0,3.8903564]
[1749299711180,0.63232548,105410.0,105400.0,3.8903564]
[1749299711664,0.61455004,105410.0,105400.0,3.8903564]
[1749299712551,0.63232309,105410.0,105400.0,3.8903564]
[1749299714069,0.63232088,105410.0,105400.0,3.8903564]
[1749299716778,0.63231907,105410.0,105400.0,3.8903564]
[1749299717801,0.63231846,105410.0,105400.0,3.8903564]
[1749299718846,0.63231838,105410.0,105400.0,3.8903564]
[1749299719457,0.63231838,105410.0,105400.0,3.89984352]
[1749299719867,0.63231838,105410.0,105400.0,3.8903564]
[1749299721492,0.43309595,105410.0,105400.0,3.89984343]
[1749299721704,0.44258262,105410.0,105400.0,3.89984343]
[1749299722118,0.44258189,105410.0,105400.0,3.89984343]
[1749299722328,0.44258188,105410.0,105400.0,3.89984343]
[1749299722529,0.63231719,105410.0,105400.0,3.8903564]
[1749299722670,0.63231719,105410.0,105400.0,3.88086928]
[1749299723057,0.62283088,105410.0,105400.0,3.98675588]
[1749299723381,0.62283088,105410.0,105400.0,3.97726876]
[1749299723611,0.62283088,105410.0,105400.0,3.98675606]
[1749299723809,0.62283088,105410.0,105400.0,3.99624327]
[1749299724221,0.62283088,105410.0,105400.0,3.98675606]
[1749299724425,0.62283181,105410.0,105400.0,3.98675606]
[1749299724797,0.43309605,105410.0,105400.0,4.0057303]
[1749299725002,0.44258281,105410.0,105400.0,4.0057303]
[1749299725212,0.43309605,105410.0,105400.0,4.00573039]
[1749299725396,0.43309605,105410.0,105400.0,4.09304985]
[1749299725622,0.41532752,105410.0,105400.0,4.09304985]
[1749299725835,0.63231949,105410.0,105400.0,4.08356282]
[1749299726032,0.44258418,105410.0,105400.0,4.08356282]
[1749299726245,0.05571622,105410.0,105400.0,4.08356282]
[1749299726441,0.04622946,105410.0,105400.0,4.09304985]
[1749299727104,0.04622946,105410.0,105400.0,4.08356282]
[1749299727252,0.04623156,105410.0,105400.0,4.09304985]
[1749299727690,0.04623142,105410.0,105400.0,4.09304985]
[1749299729772,0.05571809,105410.0,105400.0,4.09304985]
[1749299730235,0.2454534,105410.0,105400.0,4.06458849]
[1749299730462,0.25494821,105410.0,105400.0,4.0740757]
[1749299730949,0.24546191,105410.0,105400.0,4.06458885]
[1749299731189,0.24546191,105410.0,105400.0,4.07407615]
[1749299731190,0.24546192,105410.0,105400.0,4.07407615]
[1749299731442,0.04623985,105410.0,105400.0,4.08356318]
[1749299731864,0.02845974,105410.0,105400.0,4.08356318]
[1749299732084,0.04624864,105410.0,105400.0,4.08356318]
[1749299732306,0.02845974,105410.0,105400.0,4.08356318]
[1749299732530,0.04624863,105410.0,105400.0,4.08356318]
[1749299732726,0.03676196,105410.0,105400.0,4.08356318]
[1749299733201,0.04624863,105410.0,105400.0,4.08356318]
[1749299733732,0.02845974,105410.0,105400.0,4.08356318]
[1749299733968,0.0462504,105410.0,105400.0,4.08356318]
[1749299734407,0.02845974,105410.0,105400.0,4.08356318]
[1749299734631,0.0462504,105410.0,105400.0,4.08356318]
[1749299735522,0.02845974,105410.0,105400.0,4.08356318]
[1749299735746,0.04625038,105410.0,105400.0,4.08356318]
[1749299735961,0.04625304,105410.0,105400.0,4.08356318]
[1749299737495,0.03676637,105410.0,105400.0,4.08356318]
[1749299737723,0.03676637,105410.0,105400.0,4.09301596]
[1749299738645,0.01897307,105410.0,105400.0,4.09301596]
[1749299738860,0.00667272,105420.0,105410.0,0.21819442]
[1749299739074,0.094,105430.0,105420.0,0.21817382]
[1749299739316,0.12245371,105430.0,105420.0,0.60773382]
[1749299739737,0.14024402,105430.0,105420.0,0.62393382]
[1749299739953,0.13075924,105430.0,105420.0,0.62393382]
[1749299740166,0.13075924,105430.0,105420.0,1.11568802]
[1749299740167,0.11179031,105430.0,105420.0,1.11568802]
[1749299740627,0.094,105430.0,105420.0,1.11568802]
[1749299740847,0.12327407,105430.0,105420.0,1.11568802]
[1749299741052,0.61208983,105430.0,105420.0,1.11568802]
[1749299741694,0.61208983,105430.0,105420.0,1.14370735]